{"text_format":"1","workbook":"xlsx","n_sheets":4,"sheets":["По подразделениям","Расшифровка","Причины отклонения","ВС"],"not_rendered":{"charts":0,"images":0,"macros":1,"external_links":0,"defined_names":2,"comments":1,"pivot_tables":0},"unopened":[],"bounds":{"document_bytes":16777216,"sheet_cells":100000,"rows_first":2000,"rows_last":500,"rows_between":2000,"halvings":0,"cell_chars":16384,"cell_head_chars":4096},"cells_cut":0,"cells_raw":0,"read":"whole","date_system":"1900"}

{"sheet":"По подразделениям","index":0,"n_rows":16,"n_cols":29,"rows_kept":16,"cut":false,"hidden":false,"merged":[[1,21,1,22],[1,23,1,24],[1,25,1,26],[1,3,1,4],[1,5,1,6],[1,7,1,8],[1,9,1,10],[1,11,1,12],[1,13,1,14],[1,15,1,16],[1,17,1,18],[1,19,1,20],[2,23,2,24],[2,27,2,28],[2,3,2,4],[2,5,2,6],[2,7,2,8],[2,9,2,10],[2,11,2,12],[2,13,2,14],[2,25,2,26],[2,15,2,16],[2,17,2,18],[2,19,2,20],[2,21,2,22]]}
[]
[null,"ЯНВАРЬ","Заработная плата","ЯНВАРЬ",null,"ФЕВРАЛЬ",null,"МАРТ",null,"АПРЕЛЬ",null,"МАЙ",null,"ИЮНЬ",null,"ИЮЛЬ",null,"АВГУСТ",null,"СЕНТЯБРЬ",null,"ОКТЯБРЬ",null,"НОЯБРЬ",null,"ДЕКАБРЬ"]
[null,null,"Тех Служба","ЯНВАРЬ",null,"ФЕВРАЛЬ",null,"МАРТ",null,"АПРЕЛЬ",null,"МАЙ",null,"ИЮНЬ",null,"ИЮЛЬ",null,"АВГУСТ",null,"СЕНТЯБРЬ",null,"ОКТЯБРЬ",null,"НОЯБРЬ",null,"ДЕКАБРЬ",null,2020]
[null,null,null,"Затраты, руб","Доля, %","Затраты, руб","Доля, %","Затраты, руб","Доля, %","Затраты, руб","Доля, %","Затраты, руб","Доля, %","Затраты, руб","Доля, %","Затраты, руб","Доля, %","Затраты, руб","Доля, %","Затраты, руб","Доля, %","Затраты, руб","Доля, %","Затраты, руб","Доля, %","Затраты, руб","Доля, %","Затраты, руб","Доля, %"]
[null,null,"РАСХОДЫ СВОД ПО ОТДЕЛАМ, ВСЕГО",{"$f":"SUM(D6,D12,#REF!,#REF!)","v":{"$error":"#REF!"}},{"$f":"SUM(E6,E12,#REF!,#REF!)","v":{"$error":"#REF!"}},{"$f":"SUM(F6,F12,#REF!,#REF!)","v":{"$error":"#REF!"}},{"$f":"SUM(G6,G12,#REF!,#REF!)","v":{"$error":"#REF!"}},{"$f":"SUM(H6,H12,#REF!,#REF!)","v":{"$error":"#REF!"}},{"$f":"SUM(I6,I12,#REF!,#REF!)","v":{"$error":"#REF!"}},{"$f":"SUM(J6,J12,#REF!,#REF!)","v":{"$error":"#REF!"}},{"$f":"SUM(K6,K12,#REF!,#REF!)","v":{"$error":"#REF!"}},{"$f":"SUM(L6,L12,#REF!,#REF!)","v":{"$error":"#REF!"}},{"$f":"SUM(M6,M12,#REF!,#REF!)","v":{"$error":"#REF!"}},{"$f":"SUM(N6,N12,#REF!,#REF!)","v":{"$error":"#REF!"}},{"$f":"SUM(O6,O12,#REF!,#REF!)","v":{"$error":"#REF!"}},{"$f":"SUM(P6,P12,#REF!,#REF!)","v":{"$error":"#REF!"}},{"$f":"SUM(Q6,Q12,#REF!,#REF!)","v":{"$error":"#REF!"}},{"$f":"SUM(R6,R12,#REF!,#REF!)","v":{"$error":"#REF!"}},{"$f":"SUM(S6,S12,#REF!,#REF!)","v":{"$error":"#REF!"}},{"$f":"SUM(T6,T12,#REF!,#REF!)","v":{"$error":"#REF!"}},{"$f":"SUM(U6,U12,#REF!,#REF!)","v":{"$error":"#REF!"}},{"$f":"SUM(V6,V12,#REF!,#REF!)","v":{"$error":"#REF!"}},{"$f":"SUM(W6,W12,#REF!,#REF!)","v":{"$error":"#REF!"}},{"$f":"SUM(X6,X12,#REF!,#REF!)","v":{"$error":"#REF!"}},{"$f":"SUM(Y6,Y12,#REF!,#REF!)","v":{"$error":"#REF!"}},{"$f":"SUM(Z6,Z12,#REF!,#REF!)","v":{"$error":"#REF!"}},{"$f":"SUM(AA6,AA12,#REF!,#REF!)","v":{"$error":"#REF!"}},{"$f":"SUM(AB6,AB12,#REF!,#REF!)","v":{"$error":"#REF!"}},{"$f":"SUM(AC6,AC12,#REF!,#REF!)","v":{"$error":"#REF!"}}]
[null,"п/п","СТАТЬИ ЗАТРАТ ПЕРЕМЕННЫЕ ПРЯМЫЕ",{"$f":"SUM(D7:D11)","v":500},0,{"$f":"SUM(F7:F11)","v":700},0,{"$f":"SUM(H7:H11)","v":300},0,{"$f":"SUM(J7:J11)","v":0},0,{"$f":"SUM(L7:L11)","v":0},0,{"$f":"SUM(N7:N11)","v":0},0,{"$f":"SUM(P7:P11)","v":0},0,{"$f":"SUM(R7:R11)","v":0},0,{"$f":"SUM(T7:T11)","v":0},0,{"$f":"SUM(V7:V11)","v":0},0,{"$f":"SUM(X7:X11)","v":0},0,{"$f":"SUM(Z7:Z11)","v":0},0,1500,0]
[null,1,"Заработная плата",500,{"$f":"IFERROR((($D$7/$D$5)*100%),0)","v":0},700,{"$f":"IFERROR(((F7/$F$5)*100%),0)","v":0},300,{"$f":"IFERROR(((H7/$H$5)*100%),0)","v":0},null,{"$f":"IFERROR(((J7/$J$5)*100%),0)","v":0},null,{"$f":"IFERROR(((L7/$L$5)*100%),0)","v":0},null,{"$f":"IFERROR(((N7/$N$5)*100%),0)","v":0},null,{"$f":"IFERROR(((P7/$P$5)*100%),0)","v":0},null,{"$f":"IFERROR(((R7/$R$5)*100%),0)","v":0},null,{"$f":"IFERROR(((T7/$T$5)*100%),0)","v":0},null,{"$f":"IFERROR(((V7/$V$5)*100%),0)","v":0},null,{"$f":"IFERROR(((X7/$X$5)*100%),0)","v":0},null,{"$f":"IFERROR(((Z7/$Z$5)*100%),0)","v":0},{"$f":"SUM(D7:Z7)","v":1500},{"$f":"IFERROR(((AB7/$AB$5)*100%),0)","v":0}]
[null,2,"Материалы",null,{"$f":"IFERROR(((D8/$D$5)*100%),0)","v":0},null,{"$f":"IFERROR(((F8/$F$5)*100%),0)","v":0},null,{"$f":"IFERROR(((H8/$H$5)*100%),0)","v":0},null,{"$f":"IFERROR(((J8/$J$5)*100%),0)","v":0},null,{"$f":"IFERROR(((L8/$L$5)*100%),0)","v":0},null,{"$f":"IFERROR(((N8/$N$5)*100%),0)","v":0},null,{"$f":"IFERROR(((P8/$P$5)*100%),0)","v":0},null,{"$f":"IFERROR(((R8/$R$5)*100%),0)","v":0},null,{"$f":"IFERROR(((T8/$T$5)*100%),0)","v":0},null,{"$f":"IFERROR(((V8/$V$5)*100%),0)","v":0},null,{"$f":"IFERROR(((X8/$X$5)*100%),0)","v":0},null,{"$f":"IFERROR(((Z8/$Z$5)*100%),0)","v":0},{"$f":"SUM(D8:Z8)","v":0},{"$f":"IFERROR(((AB8/$AB$5)*100%),0)","v":0}]
[null,3,"Оболочка",null,0,null,0,null,0,null,0,null,0,null,0,null,0,null,0,null,0,null,0,null,0,null,0,{"$f":"SUM(D9:Z9)","v":0},{"$f":"IFERROR(((AB9/$AB$5)*100%),0)","v":0}]
[null,4,"Специи",null,0,null,0,null,0,null,0,null,0,null,0,null,0,null,0,null,0,null,0,null,0,null,0,{"$f":"SUM(D10:Z10)","v":0},{"$f":"IFERROR(((AB10/$AB$5)*100%),0)","v":0}]
[null,5,"Сырье",null,0,null,0,null,0,null,0,null,0,null,0,null,0,null,0,null,0,null,0,null,0,null,0,{"$f":"SUM(D11:Z11)","v":0},{"$f":"IFERROR(((AB11/$AB$5)*100%),0)","v":0}]
[null,"п/п","СТАТЬИ ЗАТРАТ ПЕРЕМЕННЫЕ КОСВЕННЫЕ",{"$f":"SUM(D13:D16)","v":100},0,200,0,300,0,0,0,0,0,0,0,0,0,0,0,0,0,0,0,0,0,0,0,600,0]
[null,1,"Ветеринарные услуги",100,{"$f":"IFERROR(((D13/$D$5)*100%),0)","v":0},200,{"$f":"IFERROR(((F13/$F$5)*100%),0)","v":0},300,{"$f":"IFERROR(((H13/$H$5)*100%),0)","v":0},null,{"$f":"IFERROR(((J13/$J$5)*100%),0)","v":0},null,{"$f":"IFERROR(((L13/$L$5)*100%),0)","v":0},null,{"$f":"IFERROR(((N13/$N$5)*100%),0)","v":0},null,{"$f":"IFERROR(((P13/$P$5)*100%),0)","v":0},null,{"$f":"IFERROR(((R13/$R$5)*100%),0)","v":0},null,{"$f":"IFERROR(((T13/$T$5)*100%),0)","v":0},null,{"$f":"IFERROR(((V13/$V$5)*100%),0)","v":0},null,{"$f":"IFERROR(((X13/$X$5)*100%),0)","v":0},null,{"$f":"IFERROR(((Z13/$Z$5)*100%),0)","v":0},{"$f":"SUM(D13:Z13)","v":600},{"$f":"IFERROR(((AB13/$AB$5)*100%),0)","v":0}]
[null,2,"Грузоперевозки",null,0,null,0,null,0,null,0,null,0,null,0,null,0,null,0,null,0,null,0,null,0,null,0,0,0]
[null,3,"Заработная плата",null,0,null,0,null,0,null,0,null,0,null,0,null,0,null,0,null,0,null,0,null,0,null,0,0,0]
[null,4,"Коммунальные : водоснабжение",null,0,null,0,null,0,null,0,null,0,null,0,null,0,null,0,null,0,null,0,null,0,null,0,0,0]

{"sheet":"Расшифровка","index":1,"n_rows":2,"n_cols":2,"rows_kept":2,"cut":false,"hidden":false,"merged":[]}
[]
[null,{"$f":"IFERROR(INDEX('Причины отклонения'!1:1048576,MATCH('По подразделениям'!C2,'Причины отклонения'!C:C,),MATCH('По подразделениям'!C3,INDEX('Причины отклонения'!3:3,MATCH('По подразделениям'!B2,'Причины отклонения'!2:2,)):INDEX('Причины отклонения'!3:3,MATCH('По подразделениям'!B2,'Причины отклонения'!2:2,)+4),)+MATCH('По подразделениям'!B2,'Причины отклонения'!2:2,)-1),\"Нет данных\")","v":"\nТех Служба\nЗаработная плата"}]

{"sheet":"Причины отклонения","index":2,"n_rows":6,"n_cols":63,"rows_kept":6,"cut":false,"hidden":false,"merged":[[1,53,1,57],[1,58,1,62],[1,28,1,32],[1,33,1,37],[1,38,1,42],[1,43,1,47],[1,48,1,52],[1,3,1,7],[1,23,1,27],[1,8,1,12],[1,13,1,17],[1,18,1,22]]}
[]
[null,null,null,"Январь",null,null,null,null,"Февраль",null,null,null,null,"Март",null,null,null,null,"Апрель",null,null,null,null,"Май",null,null,null,null,"Июнь",null,null,null,null,"Июль",null,null,null,null,"Август",null,null,null,null,"Сентябрь",null,null,null,null,"Октябрь",null,null,null,null,"Ноябрь",null,null,null,null,"Декабрь"]
[null,null,null,"Отдел продаж","Траснп.отдел","Тех Служба","Администрация","Производство","Отдел продаж","Траснп.отдел","Тех Служба","Администрация","Производство","Отдел продаж","Траснп.отдел","Тех Служба","Администрация","Производство","Отдел продаж","Траснп.отдел","Тех Служба","Администрация","Производство","Отдел продаж","Траснп.отдел","Тех Служба","Администрация","Производство","Отдел продаж","Траснп.отдел","Тех Служба","Администрация","Производство","Отдел продаж","Траснп.отдел","Тех Служба","Администрация","Производство","Отдел продаж","Траснп.отдел","Тех Служба","Администрация","Производство","Отдел продаж","Траснп.отдел","Тех Служба","Администрация","Производство","Отдел продаж","Траснп.отдел","Тех Служба","Администрация","Производство","Отдел продаж","Траснп.отдел","Тех Служба","Администрация","Производство","Отдел продаж","Траснп.отдел","Тех Служба","Администрация","Производство"]
[null,null,"Ветеринарные услуги",{"$f":"C$2&D$2&CHAR(10)&D$3&CHAR(10)&$C4","v":"Январь\nОтдел продаж\nВетеринарные услуги"},"Январь\nТраснп.отдел\nВетеринарные услуги",{"$f":"E$2&F$2&CHAR(10)&F$3&CHAR(10)&$C4","v":"\nТех Служба\nВетеринарные услуги"},{"$f":"F$2&G$2&CHAR(10)&G$3&CHAR(10)&$C4","v":"\nАдминистрация\nВетеринарные услуги"},{"$f":"G$2&H$2&CHAR(10)&H$3&CHAR(10)&$C4","v":"\nПроизводство\nВетеринарные услуги"},{"$f":"H$2&I$2&CHAR(10)&I$3&CHAR(10)&$C4","v":"Февраль\nОтдел продаж\nВетеринарные услуги"},{"$f":"I$2&J$2&CHAR(10)&J$3&CHAR(10)&$C4","v":"Февраль\nТраснп.отдел\nВетеринарные услуги"},{"$f":"J$2&K$2&CHAR(10)&K$3&CHAR(10)&$C4","v":"\nТех Служба\nВетеринарные услуги"},{"$f":"K$2&L$2&CHAR(10)&L$3&CHAR(10)&$C4","v":"\nАдминистрация\nВетеринарные услуги"},{"$f":"L$2&M$2&CHAR(10)&M$3&CHAR(10)&$C4","v":"\nПроизводство\nВетеринарные услуги"},{"$f":"M$2&N$2&CHAR(10)&N$3&CHAR(10)&$C4","v":"Март\nОтдел продаж\nВетеринарные услуги"},{"$f":"N$2&O$2&CHAR(10)&O$3&CHAR(10)&$C4","v":"Март\nТраснп.отдел\nВетеринарные услуги"},{"$f":"O$2&P$2&CHAR(10)&P$3&CHAR(10)&$C4","v":"\nТех Служба\nВетеринарные услуги"},{"$f":"P$2&Q$2&CHAR(10)&Q$3&CHAR(10)&$C4","v":"\nАдминистрация\nВетеринарные услуги"},{"$f":"Q$2&R$2&CHAR(10)&R$3&CHAR(10)&$C4","v":"\nПроизводство\nВетеринарные услуги"},{"$f":"R$2&S$2&CHAR(10)&S$3&CHAR(10)&$C4","v":"Апрель\nОтдел продаж\nВетеринарные услуги"},{"$f":"S$2&T$2&CHAR(10)&T$3&CHAR(10)&$C4","v":"Апрель\nТраснп.отдел\nВетеринарные услуги"},{"$f":"T$2&U$2&CHAR(10)&U$3&CHAR(10)&$C4","v":"\nТех Служба\nВетеринарные услуги"},{"$f":"U$2&V$2&CHAR(10)&V$3&CHAR(10)&$C4","v":"\nАдминистрация\nВетеринарные услуги"},{"$f":"V$2&W$2&CHAR(10)&W$3&CHAR(10)&$C4","v":"\nПроизводство\nВетеринарные услуги"},{"$f":"W$2&X$2&CHAR(10)&X$3&CHAR(10)&$C4","v":"Май\nОтдел продаж\nВетеринарные услуги"},{"$f":"X$2&Y$2&CHAR(10)&Y$3&CHAR(10)&$C4","v":"Май\nТраснп.отдел\nВетеринарные услуги"},{"$f":"Y$2&Z$2&CHAR(10)&Z$3&CHAR(10)&$C4","v":"\nТех Служба\nВетеринарные услуги"},{"$f":"Z$2&AA$2&CHAR(10)&AA$3&CHAR(10)&$C4","v":"\nАдминистрация\nВетеринарные услуги"},{"$f":"AA$2&AB$2&CHAR(10)&AB$3&CHAR(10)&$C4","v":"\nПроизводство\nВетеринарные услуги"},{"$f":"AB$2&AC$2&CHAR(10)&AC$3&CHAR(10)&$C4","v":"Июнь\nОтдел продаж\nВетеринарные услуги"},{"$f":"AC$2&AD$2&CHAR(10)&AD$3&CHAR(10)&$C4","v":"Июнь\nТраснп.отдел\nВетеринарные услуги"},{"$f":"AD$2&AE$2&CHAR(10)&AE$3&CHAR(10)&$C4","v":"\nТех Служба\nВетеринарные услуги"},{"$f":"AE$2&AF$2&CHAR(10)&AF$3&CHAR(10)&$C4","v":"\nАдминистрация\nВетеринарные услуги"},{"$f":"AF$2&AG$2&CHAR(10)&AG$3&CHAR(10)&$C4","v":"\nПроизводство\nВетеринарные услуги"},{"$f":"AG$2&AH$2&CHAR(10)&AH$3&CHAR(10)&$C4","v":"Июль\nОтдел продаж\nВетеринарные услуги"},{"$f":"AH$2&AI$2&CHAR(10)&AI$3&CHAR(10)&$C4","v":"Июль\nТраснп.отдел\nВетеринарные услуги"},{"$f":"AI$2&AJ$2&CHAR(10)&AJ$3&CHAR(10)&$C4","v":"\nТех Служба\nВетеринарные услуги"},{"$f":"AJ$2&AK$2&CHAR(10)&AK$3&CHAR(10)&$C4","v":"\nАдминистрация\nВетеринарные услуги"},{"$f":"AK$2&AL$2&CHAR(10)&AL$3&CHAR(10)&$C4","v":"\nПроизводство\nВетеринарные услуги"},{"$f":"AL$2&AM$2&CHAR(10)&AM$3&CHAR(10)&$C4","v":"Август\nОтдел продаж\nВетеринарные услуги"},{"$f":"AM$2&AN$2&CHAR(10)&AN$3&CHAR(10)&$C4","v":"Август\nТраснп.отдел\nВетеринарные услуги"},{"$f":"AN$2&AO$2&CHAR(10)&AO$3&CHAR(10)&$C4","v":"\nТех Служба\nВетеринарные услуги"},{"$f":"AO$2&AP$2&CHAR(10)&AP$3&CHAR(10)&$C4","v":"\nАдминистрация\nВетеринарные услуги"},{"$f":"AP$2&AQ$2&CHAR(10)&AQ$3&CHAR(10)&$C4","v":"\nПроизводство\nВетеринарные услуги"},{"$f":"AQ$2&AR$2&CHAR(10)&AR$3&CHAR(10)&$C4","v":"Сентябрь\nОтдел продаж\nВетеринарные услуги"},{"$f":"AR$2&AS$2&CHAR(10)&AS$3&CHAR(10)&$C4","v":"Сентябрь\nТраснп.отдел\nВетеринарные услуги"},{"$f":"AS$2&AT$2&CHAR(10)&AT$3&CHAR(10)&$C4","v":"\nТех Служба\nВетеринарные услуги"},{"$f":"AT$2&AU$2&CHAR(10)&AU$3&CHAR(10)&$C4","v":"\nАдминистрация\nВетеринарные услуги"},{"$f":"AU$2&AV$2&CHAR(10)&AV$3&CHAR(10)&$C4","v":"\nПроизводство\nВетеринарные услуги"},{"$f":"AV$2&AW$2&CHAR(10)&AW$3&CHAR(10)&$C4","v":"Октябрь\nОтдел продаж\nВетеринарные услуги"},{"$f":"AW$2&AX$2&CHAR(10)&AX$3&CHAR(10)&$C4","v":"Октябрь\nТраснп.отдел\nВетеринарные услуги"},{"$f":"AX$2&AY$2&CHAR(10)&AY$3&CHAR(10)&$C4","v":"\nТех Служба\nВетеринарные услуги"},{"$f":"AY$2&AZ$2&CHAR(10)&AZ$3&CHAR(10)&$C4","v":"\nАдминистрация\nВетеринарные услуги"},{"$f":"AZ$2&BA$2&CHAR(10)&BA$3&CHAR(10)&$C4","v":"\nПроизводство\nВетеринарные услуги"},{"$f":"BA$2&BB$2&CHAR(10)&BB$3&CHAR(10)&$C4","v":"Ноябрь\nОтдел продаж\nВетеринарные услуги"},{"$f":"BB$2&BC$2&CHAR(10)&BC$3&CHAR(10)&$C4","v":"Ноябрь\nТраснп.отдел\nВетеринарные услуги"},{"$f":"BC$2&BD$2&CHAR(10)&BD$3&CHAR(10)&$C4","v":"\nТех Служба\nВетеринарные услуги"},{"$f":"BD$2&BE$2&CHAR(10)&BE$3&CHAR(10)&$C4","v":"\nАдминистрация\nВетеринарные услуги"},{"$f":"BE$2&BF$2&CHAR(10)&BF$3&CHAR(10)&$C4","v":"\nПроизводство\nВетеринарные услуги"},{"$f":"BF$2&BG$2&CHAR(10)&BG$3&CHAR(10)&$C4","v":"Декабрь\nОтдел продаж\nВетеринарные услуги"},{"$f":"BG$2&BH$2&CHAR(10)&BH$3&CHAR(10)&$C4","v":"Декабрь\nТраснп.отдел\nВетеринарные услуги"},{"$f":"BH$2&BI$2&CHAR(10)&BI$3&CHAR(10)&$C4","v":"\nТех Служба\nВетеринарные услуги"},{"$f":"BI$2&BJ$2&CHAR(10)&BJ$3&CHAR(10)&$C4","v":"\nАдминистрация\nВетеринарные услуги"},{"$f":"BJ$2&BK$2&CHAR(10)&BK$3&CHAR(10)&$C4","v":"\nПроизводство\nВетеринарные услуги"}]
[null,null,"Грузоперевозки","Январь\nОтдел продаж\nГрузоперевозки","Январь\nТраснп.отдел\nГрузоперевозки","\nТех Служба\nГрузоперевозки","\nАдминистрация\nГрузоперевозки","\nПроизводство\nГрузоперевозки","Февраль\nОтдел продаж\nГрузоперевозки","Февраль\nТраснп.отдел\nГрузоперевозки","\nТех Служба\nГрузоперевозки","\nАдминистрация\nГрузоперевозки","\nПроизводство\nГрузоперевозки","Март\nОтдел продаж\nГрузоперевозки","Март\nТраснп.отдел\nГрузоперевозки","\nТех Служба\nГрузоперевозки","\nАдминистрация\nГрузоперевозки","\nПроизводство\nГрузоперевозки","Апрель\nОтдел продаж\nГрузоперевозки","Апрель\nТраснп.отдел\nГрузоперевозки","\nТех Служба\nГрузоперевозки","\nАдминистрация\nГрузоперевозки","\nПроизводство\nГрузоперевозки","Май\nОтдел продаж\nГрузоперевозки","Май\nТраснп.отдел\nГрузоперевозки","\nТех Служба\nГрузоперевозки","\nАдминистрация\nГрузоперевозки","\nПроизводство\nГрузоперевозки","Июнь\nОтдел продаж\nГрузоперевозки","Июнь\nТраснп.отдел\nГрузоперевозки","\nТех Служба\nГрузоперевозки","\nАдминистрация\nГрузоперевозки","\nПроизводство\nГрузоперевозки","Июль\nОтдел продаж\nГрузоперевозки","Июль\nТраснп.отдел\nГрузоперевозки","\nТех Служба\nГрузоперевозки","\nАдминистрация\nГрузоперевозки","\nПроизводство\nГрузоперевозки","Август\nОтдел продаж\nГрузоперевозки","Август\nТраснп.отдел\nГрузоперевозки","\nТех Служба\nГрузоперевозки","\nАдминистрация\nГрузоперевозки","\nПроизводство\nГрузоперевозки","Сентябрь\nОтдел продаж\nГрузоперевозки","Сентябрь\nТраснп.отдел\nГрузоперевозки","\nТех Служба\nГрузоперевозки","\nАдминистрация\nГрузоперевозки","\nПроизводство\nГрузоперевозки","Октябрь\nОтдел продаж\nГрузоперевозки","Октябрь\nТраснп.отдел\nГрузоперевозки","\nТех Служба\nГрузоперевозки","\nАдминистрация\nГрузоперевозки","\nПроизводство\nГрузоперевозки","Ноябрь\nОтдел продаж\nГрузоперевозки","Ноябрь\nТраснп.отдел\nГрузоперевозки","\nТех Служба\nГрузоперевозки","\nАдминистрация\nГрузоперевозки","\nПроизводство\nГрузоперевозки","Декабрь\nОтдел продаж\nГрузоперевозки","Декабрь\nТраснп.отдел\nГрузоперевозки","\nТех Служба\nГрузоперевозки","\nАдминистрация\nГрузоперевозки","\nПроизводство\nГрузоперевозки"]
[null,null,"Заработная плата","Январь\nОтдел продаж\nЗаработная плата","Январь\nТраснп.отдел\nЗаработная плата","\nТех Служба\nЗаработная плата","\nАдминистрация\nЗаработная плата","\nПроизводство\nЗаработная плата","Февраль\nОтдел продаж\nЗаработная плата","Февраль\nТраснп.отдел\nЗаработная плата","\nТех Служба\nЗаработная плата","\nАдминистрация\nЗаработная плата","\nПроизводство\nЗаработная плата","Март\nОтдел продаж\nЗаработная плата","Март\nТраснп.отдел\nЗаработная плата","\nТех Служба\nЗаработная плата","\nАдминистрация\nЗаработная плата","\nПроизводство\nЗаработная плата","Апрель\nОтдел продаж\nЗаработная плата","Апрель\nТраснп.отдел\nЗаработная плата","\nТех Служба\nЗаработная плата","\nАдминистрация\nЗаработная плата","\nПроизводство\nЗаработная плата","Май\nОтдел продаж\nЗаработная плата","Май\nТраснп.отдел\nЗаработная плата","\nТех Служба\nЗаработная плата","\nАдминистрация\nЗаработная плата","\nПроизводство\nЗаработная плата","Июнь\nОтдел продаж\nЗаработная плата","Июнь\nТраснп.отдел\nЗаработная плата","\nТех Служба\nЗаработная плата","\nАдминистрация\nЗаработная плата","\nПроизводство\nЗаработная плата","Июль\nОтдел продаж\nЗаработная плата","Июль\nТраснп.отдел\nЗаработная плата","\nТех Служба\nЗаработная плата","\nАдминистрация\nЗаработная плата","\nПроизводство\nЗаработная плата","Август\nОтдел продаж\nЗаработная плата","Август\nТраснп.отдел\nЗаработная плата","\nТех Служба\nЗаработная плата","\nАдминистрация\nЗаработная плата","\nПроизводство\nЗаработная плата","Сентябрь\nОтдел продаж\nЗаработная плата","Сентябрь\nТраснп.отдел\nЗаработная плата","\nТех Служба\nЗаработная плата","\nАдминистрация\nЗаработная плата","\nПроизводство\nЗаработная плата","Октябрь\nОтдел продаж\nЗаработная плата","Октябрь\nТраснп.отдел\nЗаработная плата","\nТех Служба\nЗаработная плата","\nАдминистрация\nЗаработная плата","\nПроизводство\nЗаработная плата","Ноябрь\nОтдел продаж\nЗаработная плата","Ноябрь\nТраснп.отдел\nЗаработная плата","\nТех Служба\nЗаработная плата","\nАдминистрация\nЗаработная плата","\nПроизводство\nЗаработная плата","Декабрь\nОтдел продаж\nЗаработная плата","Декабрь\nТраснп.отдел\nЗаработная плата","\nТех Служба\nЗаработная плата","\nАдминистрация\nЗаработная плата","\nПроизводство\nЗаработная плата"]

{"sheet":"ВС","index":3,"n_rows":8,"n_cols":3,"rows_kept":8,"cut":false,"hidden":false,"merged":[]}
[]
[null,null,"Подразделения"]
[null,null,"Отдел продаж"]
[null,null,"Траснп.отдел"]
[null,null,"Тех Служба"]
[null,null,"Администрация"]
[null,null,"Производство"]
[null,null,"ВСЕ отделы"]